[Event "10th LBHM Open 2024"]
[Site "Pune"]
[Date "2024.05.21"]
[Round "1.1"]
[White "Aashman Adhiraj Naik Desai"]
[Black "Ghosh, Diptayan"]
[Result "0-1"]
[ECO "D00"]
[WhiteElo "1560"]
[BlackElo "2564"]
[PlyCount "98"]
[EventDate "2024.05.21"]
[EventType "swiss"]
[EventCountry "IND"]
[TimeControl "5400+30"]

1. d4 {[%emt 0:00:19]} Nf6 {[%emt 0:00:26]} 2. Bf4 {[%emt 0:01:11]} d5 {[%emt 0:00:20]} 3. e3 {[%emt 0:02:26]} c5 {[%emt 0:00:07]} 4. c3 {[%emt 0:03:19]} Nc6 {[%emt 0:00:07]} 5. Nd2 {[%emt 0:05:17]} Bf5 {[%emt 0:00:34]} 6. Ngf3 {[%emt 0:03:25]} e6 {[%emt 0:00:19]} 7. Be2 {[%emt 0:06:36]} Be7 {[%emt 0:00:22]} 8. O-O {[%emt 0:06:46]} O-O {[%emt 0:00:30]} 9. Ne5 {[%emt 0:04:21]} Nxe5 {[%emt 0:05:20]} 10. Bxe5 {[%emt 0:01:19]} Nd7 {[%emt 0:00:13]} 11. Bg3 {[%emt 0:00:27]} a6 {[%emt 0:00:11]} 12. a4 {[%emt 0:00:57]} h6 {[%emt 0:02:27]} 13. Nf3 {[%emt 0:00:42]} Qb6 {[%emt 0:01:16]} 14. Qc1 {[%emt 0:03:43]} Rfc8 {[%emt 0:00:44]} 15. a5 {[%emt 0:01:30]} Qd8 {[%emt 0:00:17]} 16. Qd2 {[%emt 0:01:24]} Nf6 {[%emt 0:00:24]} 17. Bd3 {[%emt 0:01:17]} Ne4 {[%emt 0:02:59]} 18. Bxe4 {[%emt 0:03:54]} Bxe4 {[%emt 0:01:52]} 19. Qe2 {[%emt 0:03:48]} c4 {[%emt 0:02:04]} 20. Rfe1 {[%emt 0:00:51]} Qe8 {[%emt 0:12:17]} 21. Ne5 {[%emt 0:09:14]} f6 {[%emt 0:02:02]} 22. f3 {[%emt 0:01:27]} Bh7 {[%emt 0:02:04]} 23. Ng4 {[%emt 0:01:00]} Bd3 {[%emt 0:07:56]} 24. Qd2 {[%emt 0:00:48]} Bf5 {[%emt 0:04:08]} 25. Nf2 {[%emt 0:00:48]} Bh7 {[%emt 0:03:33]} 26. e4 {[%emt 0:00:45]} Qb5 {[%emt 0:00:55]} 27. Qe2 {[%emt 0:02:21]} Bf8 {[%emt 0:03:17]} 28. Nh3 {[%emt 0:03:49]} Re8 {[%emt 0:02:58]} 29. Bc7 {[%emt 0:01:19]} e5 {[%emt 0:01:42]} 30. Nf2 {[%emt 0:02:20]} exd4 {[%emt 0:03:17]} 31. cxd4 {[%emt 0:00:33]} Rac8 {[%emt 0:02:06]} 32. Bb6 {[%emt 0:00:52]} Rc6 {[%emt 0:04:16]} 33. Qc2 {[%emt 0:06:29]} Rce6 {[%emt 0:00:37]} 34. Re2 {[%emt 0:02:04]} Bd6 {[%emt 0:02:00]} 35. Qa4 {[%emt 0:05:17]} dxe4 {[%emt 0:02:39]} 36. fxe4 {[%emt 0:00:32]} Bxe4 {[%emt 0:06:38]} 37. Nxe4 {[%emt 0:00:38]} Rxe4 {[%emt 0:00:09]} 38. Rxe4 {[%emt 0:01:22]} Rxe4 {[%emt 0:00:06]} 39. Qc2 {[%emt 0:00:27]} f5 {[%emt 0:11:15]} 40. Rc1 {[%emt 0:01:07]} Kh7 {[%emt 0:00:08]} 41. Qf2 {[%emt 0:02:35]} Qd5 {[%emt 0:00:42]} 42. Rxc4 {[%emt 0:03:23]} Rf4 {[%emt 0:00:30]} 43. Qc2 {[%emt 0:00:54]} Qe6 {[%emt 0:01:35]} 44. Qc3 {[%emt 0:01:28]} Qe2 {[%emt 0:00:33]} 45. Qc1 {[%emt 0:02:33]} Rf2 {[%emt 0:00:18]} 46. Rc2 {[%emt 0:01:09]} Rxg2+ {[%emt 0:00:17]} 47. Kh1 {[%emt 0:00:04]} Rxh2+ {[%emt 0:00:06]} 48. Kg1 {[%emt 0:00:09]} Qg4+ {[%emt 0:00:13]} 49. Kf1 {[%emt 0:00:30]} Qf3+ {[%emt 0:00:04]} 0-1

[Event "10th LBHM Open 2024"]
[Site "Pune"]
[Date "2024.05.21"]
[Round "1.2"]
[White "Aronyak Ghosh"]
[Black "Das Prashanti Kumar"]
[Result "1-0"]
[ECO "E60"]
[WhiteElo "2536"]
[BlackElo "1560"]
[PlyCount "79"]
[EventDate "2024.05.21"]
[EventType "swiss"]
[EventCountry "IND"]
[TimeControl "5400+30"]

1. c4 {[%emt 0:00:42]} c5 {[%emt 0:00:22]} 2. Nf3 {[%emt 0:00:29]} Nf6 {[%emt 0:00:15]} 3. g3 {[%emt 0:00:33]} g6 {[%emt 0:00:22]} 4. Bg2 {[%emt 0:01:49]} Bg7 {[%emt 0:00:15]} 5. d4 {[%emt 0:00:04]} cxd4 {[%emt 0:00:18]} 6. Nxd4 {[%emt 0:00:08]} O-O {[%emt 0:00:18]} 7. Nc3 {[%emt 0:00:23]} Qb6 {[%emt 0:01:51]} 8. O-O {[%emt 0:01:37]} Ng4 {[%emt 0:01:42]} 9. e3 {[%emt 0:00:34]} d6 {[%emt 0:01:10]} 10. b3 {[%emt 0:05:48]} Na6 {[%emt 0:02:10]} 11. Bb2 {[%emt 0:00:50]} Ne5 {[%emt 0:03:01]} 12. Qe2 {[%emt 0:02:45]} Nb4 {[%emt 0:05:42]} 13. Rad1 {[%emt 0:00:50]} Bg4 {[%emt 0:02:04]} 14. f3 {[%emt 0:00:11]} Bd7 {[%emt 0:00:40]} 15. h3 {[%emt 0:02:22]} Nec6 {[%emt 0:01:05]} 16. Kh2 {[%emt 0:00:28]} Rad8 {[%emt 0:01:35]} 17. f4 {[%emt 0:01:45]} e5 {[%emt 0:00:35]} 18. Ndb5 {[%emt 0:02:27]} exf4 {[%emt 0:02:14]} 19. exf4 {[%emt 0:01:06]} Rfe8 {[%emt 0:02:02]} 20. Qd2 {[%emt 0:03:56]} Bf5 {[%emt 0:05:13]} 21. a3 {[%emt 0:03:01]} Nd3 {[%emt 0:02:04]} 22. Nd5 Nxb2 {[%emt 0:08:13]} 23. Nxb6 {[%emt 0:01:11]} Nxd1 {[%emt 0:01:11]} 24. Nd5 {[%emt 0:01:06]} Nb2 {[%emt 0:00:58]} 25. Nbc3 {[%emt 0:00:57]} Bd3 {[%emt 0:02:44]} 26. Rf2 {[%emt 0:01:28]} Bd4 {[%emt 0:01:43]} 27. Qxb2 {[%emt 0:00:41]} Re1 {[%emt 0:00:33]} 28. Qd2 {[%emt 0:04:19]} Bxf2 {[%emt 0:05:32]} 29. Qxf2 {[%emt 0:00:10]} Re6 {[%emt 0:02:03]} 30. Qd2 {[%emt 0:00:16]} Bf5 {[%emt 0:01:00]} 31. g4 {[%emt 0:00:09]} Kg7 {[%emt 0:01:44]} 32. gxf5 {[%emt 0:00:08]} gxf5 {[%emt 0:00:04]} 33. Ne3 {[%emt 0:00:11]} Ne7 {[%emt 0:01:15]} 34. Ncd5 {[%emt 0:00:05]} Kg6 {[%emt 0:01:57]} 35. Nxe7+ {[%emt 0:00:32]} Rxe7 {[%emt 0:00:08]} 36. Qf2 {[%emt 0:00:03]} f6 {[%emt 0:05:08]} 37. Qg3+ {[%emt 0:00:24]} Kf7 {[%emt 0:01:06]} 38. Nxf5 {[%emt 0:00:03]} Re2 {[%emt 0:00:28]} 39. Qg7+ {[%emt 0:00:14]} Ke8 {[%emt 0:03:30]} 40. Qg8+ {[%emt 0:00:06]} 1-0

[Event "10th LBHM Open 2024"]
[Site "Pune"]
[Date "2024.05.21"]
[Round "1.3"]
[White "Koli Aditya"]
[Black "Neelash Saha"]
[Result "0-1"]
[ECO "B15"]
[WhiteElo "1559"]
[BlackElo "2483"]
[PlyCount "104"]
[EventDate "2024.05.21"]
[EventType "swiss"]
[EventCountry "IND"]
[TimeControl "5400+30"]

1. e4 {[%emt 0:00:03]} c6 {[%emt 0:00:15]} 2. d4 {[%emt 0:00:31]} d5 {[%emt 0:00:05]} 3. Nc3 {[%emt 0:01:06]} dxe4 {[%emt 0:00:07]} 4. Nxe4 {[%emt 0:00:06]} Nf6 {[%emt 0:00:04]} 5. Nxf6+ {[%emt 0:02:19]} exf6 {[%emt 0:00:06]} 6. c3 {[%emt 0:02:11]} Bd6 {[%emt 0:00:06]} 7. Bd3 {[%emt 0:01:53]} O-O {[%emt 0:00:07]} 8. Qc2 {[%emt 0:01:55]} Re8+ {[%emt 0:00:04]} 9. Ne2 {[%emt 0:00:06]} h5 {[%emt 0:00:05]} 10. O-O {[%emt 0:04:01]} h4 {[%emt 0:00:03]} 11. h3 {[%emt 0:08:49]} Nd7 {[%emt 0:00:22]} 12. Bd2 {[%emt 0:14:26]} Nf8 {[%emt 0:00:21]} 13. Rae1 {[%emt 0:02:30]} Ne6 {[%emt 0:00:49]} 14. Bh7+ {[%emt 0:21:36]} Kh8 {[%emt 0:00:55]} 15. Bf5 Ng5 {[%emt 0:07:26]} 16. Nf4 {[%emt 0:06:19]} Bd7 {[%emt 0:02:46]} 17. Rxe8+ {[%emt 0:01:57]} Bxe8 {[%emt 0:00:06]} 18. Ne2 {[%emt 0:10:24]} g6 {[%emt 0:02:14]} 19. Bd3 {[%emt 0:00:25]} Ne6 {[%emt 0:00:10]} 20. Qb3 {[%emt 0:03:50]} Bc7 {[%emt 0:07:08]} 21. f4 {[%emt 0:01:49]} Qd6 {[%emt 0:08:47]} 22. Qd1 {[%emt 0:03:44]} Kg7 {[%emt 0:01:26]} 23. Qe1 {[%emt 0:00:53]} c5 {[%emt 0:00:35]} 24. Qxh4 {[%emt 0:02:51]} Bc6 {[%emt 0:00:19]} 25. Be3 {[%emt 0:01:32]} Qd5 {[%emt 0:06:29]} 26. Qf2 {[%emt 0:00:42]} c4 {[%emt 0:01:43]} 27. Bc2 {[%emt 0:00:49]} Rh8 {[%emt 0:00:05]} 28. Ng3 {[%emt 0:01:19]} f5 {[%emt 0:01:25]} 29. b3 {[%emt 0:01:38]} b5 {[%emt 0:02:26]} 30. Qd2 {[%emt 0:00:51]} Rh4 {[%emt 0:01:55]} 31. Bd1 {[%emt 0:01:12]} Nxf4 {[%emt 0:06:39]} 32. Bf3 {[%emt 0:01:07]} Qd6 {[%emt 0:00:17]} 33. Bxc6 {[%emt 0:00:29]} Nxh3+ {[%emt 0:00:24]} 34. gxh3 {[%emt 0:00:54]} Qxg3+ {[%emt 0:00:06]} 35. Bg2 {[%emt 0:00:28]} Qh2+ {[%emt 0:00:39]} 36. Kf2 {[%emt 0:00:01]} f4 {[%emt 0:00:15]} 37. Ke1 {[%emt 0:02:58]} fxe3 {[%emt 0:00:19]} 38. Qe2 {[%emt 0:00:43]} Bg3+ {[%emt 0:01:05]} 39. Kd1 {[%emt 0:00:06]} Bf2 {[%emt 0:00:04]} 40. Qf3 {[%emt 0:01:19]} cxb3 {[%emt 0:00:42]} 41. axb3 {[%emt 0:00:09]} b4 {[%emt 0:00:24]} 42. Qd5 {[%emt 0:00:55]} bxc3 {[%emt 0:00:24]} 43. Kc2 {[%emt 0:00:28]} Qf4 {[%emt 0:00:33]} 44. Kxc3 {[%emt 0:00:32]} e2 {[%emt 0:00:13]} 45. Rxf2 {[%emt 0:00:31]} e1=Q+ {[%emt 0:00:06]} 46. Kc4 {[%emt 0:00:20]} Qexf2 {[%emt 0:00:09]} 47. Kb5 {[%emt 0:00:17]} Rh5 {[%emt 0:00:07]} 48. Kc6 {[%emt 0:00:18]} Rxd5 {[%emt 0:00:05]} 49. Bxd5 {[%emt 0:00:03]} Q2xd4 {[%emt 0:00:09]} 50. Bc4 {[%emt 0:00:08]} Qb6+ {[%emt 0:00:07]} 51. Kd7 {[%emt 0:00:05]} Qfc7+ {[%emt 0:00:06]} 52. Ke8 {[%emt 0:00:03]} Qbb8# {[%emt 0:00:05]} 0-1

[Event "10th LBHM Open 2024"]
[Site "Pune"]
[Date "2024.05.21"]
[Round "1.4"]
[White "Nitin, S.."]
[Black "Garv Devnani"]
[Result "1-0"]
[ECO "C49"]
[WhiteElo "2356"]
[BlackElo "1536"]
[PlyCount "69"]
[EventDate "2024.05.21"]
[EventType "swiss"]
[EventCountry "IND"]
[TimeControl "5400+30"]

1. e4 {[%emt 0:00:33]} e5 {[%emt 0:00:08]} 2. Nf3 {[%emt 0:00:10]} Nc6 {[%emt 0:00:12]} 3. Nc3 {[%emt 0:00:07]} Nf6 {[%emt 0:00:10]} 4. Bb5 {[%emt 0:00:10]} Bb4 {[%emt 0:00:16]} 5. O-O {[%emt 0:00:10]} O-O {[%emt 0:00:09]} 6. d3 {[%emt 0:00:03]} d6 {[%emt 0:00:14]} 7. Ne2 {[%emt 0:00:11]} Ne7 {[%emt 0:15:24]} 8. c3 {[%emt 0:00:32]} Ba5 {[%emt 0:08:58]} 9. Ng3 {[%emt 0:00:12]} Ng6 {[%emt 0:01:52]} 10. d4 {[%emt 0:00:08]} Bb6 {[%emt 0:14:09]} 11. Re1 {[%emt 0:03:43]} Bg4 {[%emt 0:12:19]} 12. h3 {[%emt 0:06:38]} Bxf3 {[%emt 0:03:01]} 13. gxf3 {[%emt 0:00:06]} c6 {[%emt 0:03:50]} 14. Bf1 {[%emt 0:00:12]} Nd7 {[%emt 0:10:22]} 15. Be3 {[%emt 0:03:12]} Qf6 {[%emt 0:07:07]} 16. Bg2 {[%emt 0:03:46]} Nh4 {[%emt 0:02:37]} 17. dxe5 {[%emt 0:05:29]} Nxe5 {[%emt 0:06:38]} 18. f4 {[%emt 0:00:18]} Bxe3 {[%emt 0:02:46]} 19. fxe3 {[%emt 0:00:07]} Qg6 {[%emt 0:01:11]} 20. Kh2 {[%emt 0:00:24]} Nxg2 {[%emt 0:00:14]} 21. Kxg2 {[%emt 0:00:15]} Nd7 {[%emt 0:00:09]} 22. Qg4 {[%emt 0:03:10]} Nf6 {[%emt 0:02:12]} 23. Qxg6 {[%emt 0:00:19]} hxg6 {[%emt 0:00:07]} 24. Rad1 {[%emt 0:00:19]} Rad8 {[%emt 0:00:05]} 25. c4 {[%emt 0:04:07]} Rfe8 {[%emt 0:00:31]} 26. Kf3 {[%emt 0:00:12]} Re6 {[%emt 0:01:21]} 27. e5 {[%emt 0:00:48]} Ne8 {[%emt 0:04:16]} 28. Ne4 {[%emt 0:00:36]} Kf8 {[%emt 0:02:10]} 29. Rd2 {[%emt 0:01:59]} f6 {[%emt 0:01:27]} 30. exf6 {[%emt 0:03:13]} Nxf6 {[%emt 0:00:53]} 31. Ng5 {[%emt 0:00:08]} Re7 {[%emt 0:00:08]} 32. e4 {[%emt 0:01:08]} d5 {[%emt 0:00:57]} 33. Kf2 {[%emt 1:04:35]} d4 {[%emt 0:01:07]} 34. e5 {[%emt 0:00:30]} Ne8 {[%emt 0:00:30]} 35. Rh1 {[%emt 0:00:30]} 1-0

[Event "10th LBHM Open 2024"]
[Site "Pune"]
[Date "2024.05.21"]
[Round "1.5"]
[White "Limkar Varad Laxman"]
[Black "Laxman, R.R."]
[Result "0-1"]
[ECO "C47"]
[WhiteElo "1549"]
[BlackElo "2336"]
[PlyCount "120"]
[EventDate "2024.05.21"]
[EventType "swiss"]
[EventCountry "IND"]
[TimeControl "5400+30"]

1. e4 {[%emt 0:00:03]} e5 {[%emt 0:00:02]} 2. Nf3 {[%emt 0:00:20]} Nc6 {[%emt 0:00:01]} 3. d4 {[%emt 0:00:18]} exd4 {[%emt 0:00:07]} 4. Nxd4 {[%emt 0:00:05]} Nf6 {[%emt 0:00:04]} 5. Nc3 {[%emt 0:00:10]} Bb4 {[%emt 0:00:14]} 6. Nxc6 {[%emt 0:01:20]} bxc6 {[%emt 0:00:02]} 7. Bd3 {[%emt 0:00:41]} d5 {[%emt 0:00:29]} 8. exd5 {[%emt 0:00:24]} cxd5 {[%emt 0:00:02]} 9. O-O {[%emt 0:00:26]} O-O {[%emt 0:00:07]} 10. Bg5 {[%emt 0:00:14]} c6 {[%emt 0:00:07]} 11. Qf3 {[%emt 0:00:30]} Be7 {[%emt 0:00:23]} 12. Rfe1 {[%emt 0:02:33]} Re8 {[%emt 0:00:46]} 13. h3 {[%emt 0:24:01]} Be6 {[%emt 0:01:36]} 14. Ne2 {[%emt 0:01:24]} h6 {[%emt 0:00:42]} 15. Bh4 {[%emt 0:00:13]} Rb8 {[%emt 0:00:55]} 16. Nd4 {[%emt 0:00:25]} Bd7 {[%emt 0:01:11]} 17. Nf5 {[%emt 0:02:55]} Bxf5 {[%emt 0:05:05]} 18. Qxf5 {[%emt 0:00:17]} g6 {[%emt 0:04:00]} 19. Qf4 {[%emt 0:21:26]} Nh5 {[%emt 0:00:57]} 20. Bxe7 {[%emt 0:06:34]} Nxf4 {[%emt 0:00:12]} 21. Bxd8 {[%emt 0:00:05]} Rbxd8 {[%emt 0:00:03]} 22. Bf1 {[%emt 0:03:55]} Kf8 {[%emt 0:01:27]} 23. g3 {[%emt 0:00:11]} Ne6 {[%emt 0:00:12]} 24. Rad1 {[%emt 0:01:20]} Nc5 {[%emt 0:00:39]} 25. Bg2 {[%emt 0:00:12]} Na4 {[%emt 0:00:22]} 26. b3 {[%emt 0:16:02]} Nc3 {[%emt 0:00:12]} 27. Rxe8+ {[%emt 0:01:44]} Rxe8 {[%emt 0:00:07]} 28. Rd3 {[%emt 0:00:32]} Re1+ {[%emt 0:00:42]} 29. Kh2 {[%emt 0:00:20]} Nxa2 {[%emt 0:00:07]} 30. c4 {[%emt 0:00:43]} Nc1 {[%emt 0:01:03]} 31. Re3 {[%emt 0:01:26]} Rxe3 {[%emt 0:00:15]} 32. fxe3 {[%emt 0:00:06]} Nxb3 {[%emt 0:00:59]} 33. cxd5 {[%emt 0:00:07]} c5 {[%emt 0:00:05]} 34. Be4 {[%emt 0:01:14]} Nd2 {[%emt 0:00:11]} 35. Bd3 {[%emt 0:02:39]} c4 {[%emt 0:00:05]} 36. Be2 {[%emt 0:00:09]} c3 {[%emt 0:00:04]} 37. Bd3 {[%emt 0:00:05]} Nf1+ {[%emt 0:00:14]} 38. Kg2 {[%emt 0:00:28]} c2 {[%emt 0:00:09]} 39. Bxc2 {[%emt 0:00:52]} Nxe3+ {[%emt 0:00:02]} 40. Kf3 {[%emt 0:00:24]} Nxc2 {[%emt 0:00:02]} 41. Ke4 {[%emt 0:00:08]} a5 {[%emt 0:00:06]} 42. Kd3 {[%emt 0:00:08]} Nb4+ {[%emt 0:00:04]} 43. Kc4 {[%emt 0:00:04]} Ke7 {[%emt 0:00:03]} 44. Kb5 {[%emt 0:00:08]} Nxd5 {[%emt 0:00:05]} 45. Kxa5 {[%emt 0:00:03]} f5 {[%emt 0:00:05]} 46. Kb5 {[%emt 0:00:07]} g5 {[%emt 0:00:05]} 47. Kc4 {[%emt 0:00:03]} Ke6 {[%emt 0:00:03]} 48. Kd4 {[%emt 0:00:04]} f4 {[%emt 0:00:03]} 49. gxf4 {[%emt 0:00:08]} Nxf4 {[%emt 0:00:02]} 50. h4 {[%emt 0:00:17]} g4 {[%emt 0:00:07]} 51. Ke4 {[%emt 0:00:10]} Nh5 {[%emt 0:00:04]} 52. Ke3 {[%emt 0:00:06]} Kf5 {[%emt 0:00:04]} 53. Kf2 {[%emt 0:00:03]} Kf4 {[%emt 0:00:04]} 54. Kg2 {[%emt 0:00:07]} g3 {[%emt 0:00:06]} 55. Kg1 {[%emt 0:00:06]} Kf3 {[%emt 0:00:03]} 56. Kf1 {[%emt 0:00:03]} g2+ {[%emt 0:00:05]} 57. Kg1 {[%emt 0:00:04]} Nf4 {[%emt 0:00:05]} 58. h5 {[%emt 0:00:38]} Ne2+ {[%emt 0:00:04]} 59. Kh2 {[%emt 0:00:05]} g1=Q+ {[%emt 0:00:04]} 60. Kh3 {[%emt 0:00:02]} Qh1# {[%emt 0:00:06]} 0-1

[Event "10th LBHM Open 2024"]
[Site "Pune"]
[Date "2024.05.21"]
[Round "1.6"]
[White "Ratnakaran, K.."]
[Black "Parte Shravan"]
[Result "1-0"]
[ECO "C00"]
[WhiteElo "2275"]
[BlackElo "1555"]
[PlyCount "113"]
[EventDate "2024.05.21"]
[EventType "swiss"]
[EventCountry "IND"]
[TimeControl "5400+30"]

1. e4 {[%emt 0:00:02]} e6 {[%emt 0:01:24]} 2. d3 {[%emt 0:00:02]} d5 {[%emt 0:00:08]} 3. Nd2 {[%emt 0:00:05]} c5 {[%emt 0:00:17]} 4. Qe2 {[%emt 0:00:09]} Nc6 {[%emt 0:03:50]} 5. c3 {[%emt 0:00:20]} b6 {[%emt 0:04:27]} 6. exd5 {[%emt 0:00:13]} Qxd5 {[%emt 0:00:05]} 7. Ngf3 {[%emt 0:00:05]} Nf6 {[%emt 0:01:07]} 8. Nc4 {[%emt 0:00:09]} Be7 {[%emt 0:07:17]} 9. g4 {[%emt 0:00:07]} b5 {[%emt 0:04:28]} 10. g5 {[%emt 0:03:44]} Nd7 {[%emt 0:28:01]} 11. Ne3 {[%emt 0:00:54]} Qd6 {[%emt 0:04:40]} 12. Bg2 {[%emt 0:00:06]} Bb7 {[%emt 0:00:40]} 13. O-O {[%emt 0:01:43]} O-O {[%emt 0:06:14]} 14. a4 {[%emt 0:01:40]} a6 {[%emt 0:01:37]} 15. Rd1 {[%emt 0:01:43]} Qc7 {[%emt 0:01:15]} 16. Ng4 {[%emt 0:00:14]} Bd6 {[%emt 0:02:54]} 17. axb5 {[%emt 0:02:13]} axb5 {[%emt 0:00:07]} 18. Rxa8 {[%emt 0:00:03]} Rxa8 {[%emt 0:01:13]} 19. h4 {[%emt 0:00:30]} Ne7 {[%emt 0:08:26]} 20. d4 {[%emt 0:02:46]} c4 {[%emt 0:01:12]} 21. h5 {[%emt 0:01:18]} Bf4 {[%emt 0:05:29]} 22. Nfe5 {[%emt 0:01:35]} Bxc1 {[%emt 0:00:52]} 23. Bxb7 {[%emt 0:00:24]} Qxb7 {[%emt 0:01:16]} 24. Rxc1 {[%emt 0:00:09]} Nxe5 {[%emt 0:00:47]} 25. Nxe5 {[%emt 0:00:17]} Qd5 {[%emt 0:02:44]} 26. h6 {[%emt 0:02:33]} Ng6 {[%emt 0:00:59]} 27. hxg7 {[%emt 0:00:23]} Kxg7 {[%emt 0:01:37]} 28. Re1 {[%emt 0:02:09]} Nxe5 {[%emt 0:03:39]} 29. Qxe5+ {[%emt 0:04:11]} Qxe5 {[%emt 0:00:08]} 30. Rxe5 {[%emt 0:00:03]} Rb8 {[%emt 0:00:38]} 31. Kg2 {[%emt 0:00:47]} Rb6 {[%emt 0:00:24]} 32. f4 {[%emt 0:01:01]} Kg6 {[%emt 0:01:42]} 33. Kf3 {[%emt 0:00:25]} h5 {[%emt 0:03:26]} 34. Rc5 {[%emt 0:00:42]} Rb7 {[%emt 0:03:18]} 35. Kg3 {[%emt 0:00:12]} Rb8 {[%emt 0:01:01]} 36. Kh4 {[%emt 0:02:02]} Rb6 {[%emt 0:00:35]} 37. d5 {[%emt 0:01:18]} Rd6 {[%emt 0:00:18]} 38. dxe6 {[%emt 0:00:22]} fxe6 {[%emt 0:00:22]} 39. Rxb5 {[%emt 0:00:06]} Rd2 {[%emt 0:00:48]} 40. Re5 {[%emt 0:02:20]} Rd6 {[%emt 0:00:31]} 41. Re4 {[%emt 0:00:48]} Rc6 {[%emt 0:00:26]} 42. Rd4 {[%emt 0:02:19]} Rc7 {[%emt 0:00:35]} 43. Rd8 {[%emt 0:00:58]} Rf7 {[%emt 0:00:28]} 44. Rg8+ {[%emt 0:00:25]} Kf5 {[%emt 0:00:31]} 45. g6 {[%emt 0:00:13]} Rf6 {[%emt 0:00:33]} 46. Kxh5 {[%emt 0:00:08]} Kxf4 {[%emt 0:00:09]} 47. g7 {[%emt 0:00:10]} Rf5+ {[%emt 0:00:29]} 48. Kh4 {[%emt 0:00:16]} e5 {[%emt 0:00:49]} 49. Rf8 {[%emt 0:00:06]} e4 {[%emt 0:00:07]} 50. g8=Q {[%emt 0:00:17]} Rxf8 {[%emt 0:00:10]} 51. Qxf8+ {[%emt 0:00:11]} Ke3 {[%emt 0:00:08]} 52. Qd6 {[%emt 0:00:48]} Kf3 {[%emt 0:00:20]} 53. Qd5 {[%emt 0:00:16]} Kf4 {[%emt 0:00:50]} 54. Qxc4 {[%emt 0:00:06]} Kf3 {[%emt 0:00:05]} 55. Kg5 {[%emt 0:00:58]} e3 {[%emt 0:00:03]} 56. Qf1+ {[%emt 0:00:12]} Ke4 {[%emt 0:00:08]} 57. Qf5# {[%emt 0:00:09]} 1-0

[Event "10th LBHM Open 2024"]
[Site "Pune"]
[Date "2024.05.21"]
[Round "1.7"]
[White "Aaryavrat Rasiket Naik Desai"]
[Black "Roy Chowdhury, Saptarshi"]
[Result "0-1"]
[ECO "A45"]
[WhiteElo "1562"]
[BlackElo "2249"]
[PlyCount "102"]
[EventDate "2024.05.21"]
[EventType "swiss"]
[EventCountry "IND"]
[TimeControl "5400+30"]

1. d4 {[%emt 0:00:06]} Nf6 {[%emt 0:00:08]} 2. Bf4 {[%emt 0:00:14]} d6 {[%emt 0:00:50]} 3. Nc3 {[%emt 0:00:13]} Nbd7 {[%emt 0:00:59]} 4. e4 {[%emt 0:00:31]} e5 {[%emt 0:00:08]} 5. dxe5 {[%emt 0:00:17]} dxe5 {[%emt 0:00:06]} 6. Be3 {[%emt 0:00:19]} Bb4 {[%emt 0:00:52]} 7. Bd3 {[%emt 0:01:23]} O-O {[%emt 0:01:18]} 8. Nf3 {[%emt 0:00:12]} c6 {[%emt 0:01:59]} 9. O-O {[%emt 0:00:12]} Re8 {[%emt 0:00:58]} 10. Qe2 {[%emt 0:00:57]} Bxc3 {[%emt 0:02:15]} 11. bxc3 {[%emt 0:00:15]} Qa5 {[%emt 0:00:04]} 12. Bd2 {[%emt 0:02:42]} Nc5 {[%emt 0:01:36]} 13. h3 {[%emt 0:00:41]} h6 {[%emt 0:04:25]} 14. Rfd1 {[%emt 0:01:43]} Qc7 {[%emt 0:01:18]} 15. Qe3 {[%emt 0:09:35]} b6 {[%emt 0:08:35]} 16. Bc1 {[%emt 0:02:22]} Ne6 {[%emt 0:05:06]} 17. Qe2 {[%emt 0:03:06]} Bb7 {[%emt 0:01:48]} 18. Nh4 {[%emt 0:08:17]} Rad8 {[%emt 0:03:20]} 19. Nf5 {[%emt 0:05:06]} c5 {[%emt 0:03:34]} 20. c4 {[%emt 0:03:57]} Nf4 {[%emt 0:04:28]} 21. Qf3 {[%emt 0:00:57]} Nxe4 {[%emt 0:26:36]} 22. Bxf4 {[%emt 0:05:21]} exf4 {[%emt 0:00:39]} 23. Qg4 {[%emt 0:00:31]} g6 {[%emt 0:02:00]} 24. Nxh6+ {[%emt 0:00:15]} Kf8 {[%emt 0:00:14]} 25. Qh4 {[%emt 0:01:57]} Qe5 {[%emt 0:14:37]} 26. Re1 {[%emt 0:03:17]} Qg5 {[%emt 0:00:43]} 27. Qxg5 {[%emt 0:00:41]} Nxg5 {[%emt 0:00:02]} 28. h4 {[%emt 0:00:43]} Ne6 {[%emt 0:00:08]} 29. Ng4 {[%emt 0:00:49]} Kg7 {[%emt 0:00:18]} 30. Ne5 {[%emt 0:01:00]} Rd6 {[%emt 0:00:16]} 31. Rad1 {[%emt 0:48:21]} Nd4 {[%emt 0:04:21]} 32. c3 {[%emt 0:00:00]} Nf5 {[%emt 0:02:05]} 33. Bxf5 {[%emt 0:00:00]} Rxe5 {[%emt 0:00:41]} 34. Bc2 {[%emt 0:00:00]} Rxd1 {[%emt 0:03:22]} 35. Rxd1 {[%emt 0:00:00]} Re2 {[%emt 0:00:03]} 36. Bb3 {[%emt 0:00:00]} Bc8 {[%emt 0:00:14]} 37. Rd8 {[%emt 0:00:00]} Be6 {[%emt 0:00:04]} 38. Ra8 {[%emt 0:00:00]} a5 {[%emt 0:00:05]} 39. Rb8 {[%emt 0:00:00]} Rb2 {[%emt 0:00:16]} 40. Rd8 {[%emt 0:00:00]} a4 {[%emt 0:00:54]} 41. Bxa4 {[%emt 0:00:00]} Bxc4 {[%emt 0:00:05]} 42. Ra8 {[%emt 0:00:00]} Rxa2 {[%emt 0:00:36]} 43. Bc6 {[%emt 0:00:00]} Rxa8 {[%emt 0:01:45]} 44. Bxa8 {[%emt 0:00:00]} b5 {[%emt 0:00:03]} 45. Be4 {[%emt 0:00:00]} b4 {[%emt 0:00:05]} 46. cxb4 {[%emt 0:00:00]} cxb4 {[%emt 0:00:05]} 47. f3 {[%emt 0:00:00]} b3 {[%emt 0:00:29]} 48. Kf2 {[%emt 0:00:00]} b2 {[%emt 0:00:14]} 49. Bb1 {[%emt 0:00:00]} Be6 {[%emt 0:00:04]} 50. g4 {[%emt 0:00:00]} fxg3+ {[%emt 0:00:03]} 51. Kxg3 {[%emt 0:00:00]} Bf5 {[%emt 0:00:03]} 0-1

[Event "10th LBHM Open 2024"]
[Site "Pune"]
[Date "2024.05.21"]
[Round "1.8"]
[White "Dere Pushkar"]
[Black "Ishaan Kandi"]
[Result "1-0"]
[ECO "B22"]
[WhiteElo "2209"]
[BlackElo "1551"]
[PlyCount "49"]
[EventDate "2024.05.21"]
[EventType "swiss"]
[EventCountry "IND"]
[TimeControl "5400+30"]

1. e4 {[%emt 0:14:46]} c5 {[%emt 0:00:19]} 2. c3 {[%emt 0:06:02]} Nf6 {[%emt 0:00:42]} 3. e5 {[%emt 0:00:10]} Nd5 {[%emt 0:00:19]} 4. Nf3 {[%emt 0:00:17]} d6 {[%emt 0:00:46]} 5. Bb5+ {[%emt 0:00:33]} Bd7 {[%emt 0:02:54]} 6. Bc4 {[%emt 0:00:44]} Nb6 {[%emt 0:00:39]} 7. Bb3 {[%emt 0:00:12]} e6 {[%emt 0:01:32]} 8. O-O {[%emt 0:01:35]} Nc6 {[%emt 0:00:51]} 9. d4 {[%emt 0:00:29]} c4 {[%emt 0:04:11]} 10. Bc2 {[%emt 0:00:10]} dxe5 {[%emt 0:05:28]} 11. dxe5 {[%emt 0:00:32]} Qc7 {[%emt 0:00:31]} 12. Qe2 {[%emt 0:00:21]} Be7 {[%emt 0:02:21]} 13. Nbd2 {[%emt 0:02:16]} Nb8 {[%emt 0:02:43]} 14. Ne4 {[%emt 0:01:01]} Bc6 {[%emt 0:02:29]} 15. Bf4 {[%emt 0:00:58]} Bxe4 {[%emt 0:03:53]} 16. Bxe4 {[%emt 0:01:56]} Nd5 17. Bg3 {[%emt 0:01:17]} Qc5 {[%emt 0:06:17]} 18. Rad1 {[%emt 0:02:35]} O-O {[%emt 0:03:27]} 19. Bb1 {[%emt 0:03:54]} Nc6 {[%emt 0:08:15]} 20. Nd2 {[%emt 0:01:26]} b5 {[%emt 0:03:29]} 21. Ne4 {[%emt 0:01:31]} Qb6 {[%emt 0:00:30]} 22. Qh5 {[%emt 0:00:06]} g6 {[%emt 0:00:21]} 23. Qh6 {[%emt 0:00:07]} Qd8 {[%emt 0:01:54]} 24. Bf4 {[%emt 0:03:44]} Qc8 {[%emt 0:03:34]} 25. Rxd5 {[%emt 0:00:31]} 1-0